Cogmind - Beta 13 @@@ ROGUE MODE // 2024.04.06 @ 14:28:09 Player: Copyrite Result: Destroyed by G-34 Mercenary with Small Laser Performance ------------- Evolutions (0) 0 Regions Visited (1) 200 Robots Destroyed (10) 50 Value Destroyed (93) 93 Prototype IDs (2) 40 Alien Tech Used (0) 0 Bonus (0) 0 TOTAL SCORE: 383 Bonus ------- None Cogmind --------- Core Integrity 0/250 Matter 285/300 Energy 100/100 System Corruption 0% Temperature Cool (12) Movement Core (350) Ox6 Location -10/Materials Parts ------- > --- POWER (1) -------- (None) > --- PROPULSION (2) --- (None) > --- UTILITY (2) ------ Large Storage Unit > --- WEAPON (2) ------- (None) > --- INVENTORY (15) --- Light Ion Engine Aluminum Leg Aluminum Leg Signal Interpreter Improved Terrain Scanner Light Armor Plating Grenade Launcher Datajack Mining Laser Peak State ------------ > --- POWER ------------ Ion Engine > --- PROPULSION ------- Light Treads Light Treads > --- UTILITY ---------- Small Storage Unit Improved Terrain Scanner > --- WEAPON ----------- Medium Laser Medium Laser > --- INVENTORY -------- Light Ion Engine Light Ion Engine Aluminum Leg Aluminum Leg Improved Terrain Scanner EM Pulse Gun Grenade Launcher Mining Laser [Rating: 10] Favorites ----------- Power Ion Engine Engine Ion Engine Propulsion Light Treads Treads Light Treads Utility Improved Terrain Scanner Device Improved Terrain Scanner Storage Small Storage Unit Weapon Medium Laser Energy Gun Medium Laser Special Weapon Mining Laser Special Melee Weapon Datajack Build | -11 -10 ------- Run | Yrd Mat Slots Evolved . | . . Power . | . . Propulsion . | . . Utility . | . . Weapon . | . . Parts Attached 14 | 8 6 Power 2 | 1 1 Engine 2 | 1 1 Core . | . . Reactor . | . . Propulsion 2 | 2 . Treads 2 | 2 . Leg . | . . Wheel . | . . Hover . | . . Flight . | . . Utility 3 | 2 1 Device 1 | 1 . Storage 2 | 1 1 Processor . | . . Hackware . | . . Protection . | . . Artifact . | . . Weapon 7 | 3 4 Energy Gun 5 | 3 2 Energy Cannon . | . . Ballistic Gun . | . . Ballistic Cannon . | . . Launcher . | . . Special Weapon 1 | . 1 Impact Weapon . | . . Slashing Weapon . | . . Piercing Weapon . | . . Special Melee Weapon 1 | . 1 Unidentified Prototypes . | . . Parts Lost 7 | . 7 Power 2 | . 2 Propulsion 2 | . 2 Utility 1 | . 1 Weapon 2 | . 2 Highest Loss Streak 7 | . 7 To Critical Strikes . | . . Average Slot Usage (%) 96 | . 96 Engine 13 | . 13 Treads 26 | . 26 Device 13 | . 13 Storage 14 | . 14 Energy Gun 13 | . 13 Special Weapon 11 | . 11 Special Melee Weapon 1 | . 1 Naked Turns . | . . Heaviest Build 29 | 15 29 Greatest Support 40 | 40 40 Greatest Overweight (x) 8 | . 8 Average Overweight (x) . | . . Largest Inventory Capacity 15 | 8 15 Average Capacity 10 | 7 13 Most Carried 11 | 7 11 Average Carried 7 | 5 8 Final Capacity 15 | 8 15 Final Carried 9 | 7 9 Class Distribution -------------------- 100% | Mutant Dominant Class ---------------- Mutant | -10/Materials Resources | -11 -10 ----------- Run | Yrd Mat Matter Collected 290 | 280 10 Remotely . | . . Salvage Created 274 | 178 96 Parts 18 | 11 7 Haulers Intercepted . | . . Recyclers Shooed . | . . Parts Field Recycled . | . . Retrieved Matter . | . . Parts Self-Destructed . | . . Prevented . | . . Kills | -11 -10 ------- Run | Yrd Mat Combat Hostiles Destroyed 4 | . 4 Guns 4 | . 4 Classes Destroyed 5 | 3 2 Worker 2 | 2 . Tunneler 3 | 3 . Recycler 1 | 1 . Swarmer 3 | . 3 Grunt 1 | . 1 Best Kill Streak 5 | 5 3 Combat Bots Only 3 | . 3 Max Kills in Single Turn 1 | 1 1 Gunslinging . | . . Exploded . | . . Melee . | . . Uniques/NPCs Destroyed . | . . Combat | -11 -10 -------- Run | Yrd Mat Hostile Shots Fired 100 | . 100 Missed 18 | . 18 Damage Taken 980 | . 980 Core 251 | . 251 Absorbed by Shields . | . . Core Remaining (%) 100 | 100 . Volleys Fired 41 | 9 32 Largest 2 | 2 2 Hottest 100 | 100 100 Shots Fired 51 | 18 33 Gun 42 | 18 24 Cannon . | . . Launcher . | . . Special 9 | . 9 Kinetic . | . . Thermal 51 | 18 33 Explosive . | . . Electromagnetic . | . . Robot Hit Streak 6 | 6 5 Robot Miss Streak 1 | 1 1 Penetration Max . | . . Secondary Targets . | . . Shots Hit Robots 35 | 14 21 Core Hits 12 | 5 7 Critical Kills . | . . Critical Parts Destroyed . | . . Critical Strikes 6 | 5 1 Burn 6 | 5 1 Melee Attacks 5 | . 5 Impact . | . . Slashing . | . . Piercing . | . . Sneak Attacks 5 | . 5 Combat Hostiles . | . . Follow-up Attacks . | . . Damage Inflicted 389 | 187 202 Guns 389 | 187 202 Cannons . | . . Explosions . | . . Melee . | . . Ramming . | . . Kinetic . | . . Thermal 389 | 187 202 Explosive . | . . Electromagnetic . | . . Impact . | . . Slashing . | . . Piercing . | . . Highest Corruption . | . . Average Corruption . | . . Corruption Purged . | . . Corruption Blocked . | . . Overload Shots . | . . Overflow Damage . | . . Projectiles . | . . Explosions . | . . Melee . | . . Knockbacks . | . . Impact . | . . Kinetic . | . . Secondary . | . . Self-Inflicted Damage . | . . Shots . | . . Rammed . | . . Targets Rammed . | . . Kicked . | . . Crushed . | . . Highest Temperature 389 | 234 389 Average Temperature 100 | 96 101 Received Heat Transfer 504 | . 504 Effects 4 | 1 3 Shutdowns 1 | . 1 Interference 3 | 1 2 Siege Activations . | . . Robots Corrupted . | . . Combat Hostiles . | . . Parts Fried . | . . Impact Corruptions . | . . Robots Melted 2 | 2 . Combat Hostiles . | . . Parts Melted 5 | 4 1 Heat Transferred 1591 | 925 666 Parts Sabotaged . | . . Parts Stolen . | . . Parts Stripped . | . . Power Chain Reactions . | . . Alert | -11 -10 ------- Run | Yrd Mat Peak Influence 78 | 30 78 Initial . | . . Average 24 | 15 31 Maximum Alert Level . | . . Low Security (%) 100 | 100 100 Level 1 . | . . Level 2 . | . . Level 3 . | . . Level 4 . | . . Level 5 . | . . High Security . | . . Max Security . | . . Squads Dispatched 2 | . 2 Investigation 1 | . 1 Extermination . | . . Reinforcement 1 | . 1 Assault . | . . Garrison . | . . Intercept . | . . Searches Triggered . | . . Construction Impeded . | . . Haulers Reinforced . | . . Active Scanning Responses . | . . Cargo Convoy Interrupts . | . . Stealth | -11 -10 --------- Run | Yrd Mat Distress Signals 2 | . 2 Communications Jammed . | . . Distress Signals . | . . Times Spotted 12 | . 12 Peak Tracking Total 8 | . 8 Tactical Retreats . | . . Traps | -11 -10 ------- Run | Yrd Mat Traps Triggered . | . . Indirectly . | . . Trap Hack Attempts . | . . Triggered . | . . Disarmed . | . . Reprogrammed . | . . Reused . | . . Traps Extracted . | . . Installed . | . . Triggered . | . . Machines | -11 -10 ---------- Run | Yrd Mat Machines Disabled 1 | . 1 Max in Single Turn 1 | . 1 Machines Repaired . | . . Machines Dismantled . | . . Machines Sabotaged . | . . Overloaded Fab Kills . | . . Hacking | -11 -10 --------- Run | Yrd Mat Machines Accessed 4 | . 4 Terminals 4 | . 4 Fabricators . | . . Repair Stations . | . . Recycling Units . | . . Scanalyzers . | . . Garrison Access . | . . Total Hacks 10 | . 10 Successful 5 | . 5 Failed 5 | . 5 Catastrophic 1 | . 1 Database Lockouts . | . . Manual 7 | . 7 Terminals 10 | . 10 Fabricators . | . . Repair Stations . | . . Recycling Units . | . . Scanalyzers . | . . Garrison Access . | . . Terminal Hacks 2 | . 2 Prototype ID Bank 1 | . 1 Alert Level 1 | . 1 Fabricator Hacks . | . . Repair Station Hacks . | . . Recycling Unit Hacks . | . . Scanalyzer . | . . Garrison Access Hacks . | . . Unauthorized Hacks 3 | . 3 Terminals 3 | . 3 Botnet 3 | . 3 Fabricators . | . . Repair Stations . | . . Recycling Units . | . . Scanalyzers . | . . Garrison Access . | . . Data Cores Recovered . | . . Used . | . . Hacking Detections 2 | . 2 Full Trace Events 1 | . 1 Feedback Events . | . . Feedback Blocked . | . . Robot Schematics Acquired . | . . Robots Built . | . . Authchips . | . . Time . | . . Total Robot Build Rating . | . . Part Schematics Acquired . | . . Parts Built . | . . Authchips . | . . Time . | . . Total Part Build Rating . | . . Parts Repaired . | . . Time . | . . Parts Recycled . | . . Recycled Matter . | . . Retrieved Matter . | . . Retrieved Components . | . . Parts Scanalyzed . | . . Part Schematics Acquired . | . . Parts Damaged . | . . Bothacking | -11 -10 ------------ Run | Yrd Mat Used RIF Installer . | . . Robots Hacked 1 | . 1 Non-combat 1 | . 1 Combat . | . . Robot Hacks Applied 3 | . 3 parse_system 2 | . 2 no_distress 1 | . 1 Relay Couplers Released . | . . Fabnet Peak Effective % . | . . Robots Rewired . | . . Allies Hacked . | . . Hacks Repelled . | . . Allies | -11 -10 -------- Run | Yrd Mat Total Allies . | . . Largest Group . | . . Highest-Rated Group . | . . Highest-Rated Ally . | . . Total Orders . | . . Ally Attacks . | . . Total Damage . | . . Kills . | . . Allies Corrupted . | . . Allies Melted . | . . Intel | -11 -10 ------- Run | Yrd Mat Robot Analysis Total . | . . Derelict Logs Recovered . | . . Drone Launches . | . . Drone Recoveries . | . . Exploration | -11 -10 ------------- Run | Yrd Mat Turns Passed 1268 | 573 695 Spaces Moved 493 | 163 330 Core 7 | 1 6 Treads 486 | 162 324 Legs . | . . Wheels . | . . Hover . | . . Flight . | . . Fastest Speed 50 | 50 160 Average Speed 162 | 159 164 Slowest Speed 450 | 160 450 Overloaded Moves . | . . Propulsion Burnouts . | . . Robots Hopped . | . . Cave-ins Triggered . | . . Exploration Rate (%) 31 | 17 45 Regions Visited 1 Branch Regions . Pre-discovered Areas . | . . Known Exits Taken . | . . Unknown Exits Taken 1 | 1 . Scrap Searched . | . . Spaces Dug 7 | . 7 Terrain Destroyed 7 | . 7 Melee . | . . Projectile 7 | . 7 AOE . | . . Terrain Rammed . | . . Walls Destroyed . | . . Machines Disabled . | . . Actions | -11 -10 --------- Run | Yrd Mat Total 882 | 454 428 Wait 316 | 268 48 Move 492 | 162 330 Hop . | . . Pick Up 11 | 7 4 Fast Attach 7 | 7 . Attach 2 | . 2 Detach 1 | . 1 Swap 5 | 1 4 Drop 2 | . 2 Fire 41 | 9 32 Melee 5 | . 5 Ram . | . . Kick . | . . Crush . | . . Escape Stasis . | . . Rewire . | . . Trap . | . . Miscellaneous . | . . Route ------- -11/Scrapyard -10/Materials (discovered 1 exit: [*Min]) History --------- Turn | Location | Event 7 | -11/Scrapyard | Discovered new exit (range 15) 574 | -11/Scrapyard | Entered Materials 575 | -10/Materials | Build established: Mutant 1065 | -10/Materials | Discovered new exit (range 12) 1242 | -10/Materials | Core integrity fell below 50% 1257 | -10/Materials | Core integrity fell below 20% 1269 | -10/Materials | Destroyed by G-34 Mercenary with Small Laser Last Messages --------------- W-16 Scout sends out distress signal. ALERT: Hostiles spotted, dispatching reinforcements to Terminal M004. U-05 Engineer builds a Wall. Imp. Terrain Scanner destroyed. Heat Sink melted. G-34 Mercenary destroyed. Ion Engine destroyed. K-01 Serf collects debris. W-16 Scout sends out distress signal. Lgt. Treads destroyed. K-01 Serf collects debris. Overheating: System interference. Med. Laser temporarily disabled. Power failure, Lgt. Ion Engine shutdown. Lgt. Treads destroyed. Med. Laser destroyed. K-01 Serf collects debris. Lgt. Ion Engine destroyed. Med. Laser destroyed. Map ----- +----------------------------------------------------+ | ????????????? ?????????????????????????????? | | ????????? """ ?????????????????????????????? | | ????????# "Y" #????????????????????????????? | | ????????+ #????????????????????????????? | | ????????# #"?? ????????????????????????? | | ????????# #"?????? ????????????????????? | | ????????# #????????????????????????????? | | ??#?????? #??????????? ????????????????? | | ?????????? #?????????? ?#??????????????? | | ?????? ? """ ##+####### ??????????????? | | ???? """ ?????????????? | | ???? """ ] ?????????????? | | ???? ?????????????? | | ??? #######/##???????????????????? | | #???????######## ##??# #??? #??????????????? | | ?????##????????# #???# " #?? #??????????????? | | #??????????????# #???# T %=## #??????????????? | | ???#??#????##??# ##??# " + #??????????????? | | ??#??##????#?### ##### #???????????????????? | | #########?#???# "## #???????????????????? | | #????#?# " ## ##????????? ????????? | | """ #??????# !!## """ #???????????????????? | | """ #?????## < ""##g"""g#???????????????????? | | """ !#?#????# !!## """ #??? ??#????????????? | | #?#????# ""## gg #???????????????????? | | """ #??##??# "## @ g #???????????????????? | | """ #???##?## ########### ??????????????????? | | """ #???????# #???#?? ??????????????????????? | | #???#???# #????#????????????????????????? | | ###+####????#### ############??????????????????? | | ##?#?#?## ## /#??????????????????? | | ######## # #??????????????????? | | T" # """ """ #??????????????????? | | ############### " + """ """ #??????????????????? | | ???#?##??????## # """ """ #??????????????????? | | ?#???#????????# # #??????????????????? | | ##??########??####### #??????????????????? | | #####[==T ######????# #????#?????????????? | | #=%[= ##"""##???#+#########??????????????????? | | "" # """%##"Y"###### #??????????????????????????? | | "" # """ + #???##?#???????????????????? | | "" + """ # ##??????#??????????????????? | | # # """ #####??????????????????????? | | # # == """ ## !##?????????????????????? | | ####### == """ ## !#?? ??????#???????????? | | ########### == """ !#????#????????????????? | | #?## + !#?????????????????????? | | #??# # !#??????????#??????????? | | #?## # ######## !##?????????????????????? | | ##?# # #?##???# ####??????????????????????? | +----------------------------------------------------+ Best States ------------- Heat Dissipation 25 Energy Generation 10 Energy Capacity 250 Matter Stores 300 Matter Capacity 300 Sight Range 16 Terrain Scan Range 16 Terrain Scan Density 10 Evasion (%) 40 Recoil Reduction 2 Item Schematics ----------------- None Robot Schematics ------------------ None Fabricated ------------ Nothing Alien Tech Used ----------------- None Achievements -------------- Quantum Hacking Challenges ------------ None Game ------ Seed SeismicLinkedEngine Manual? 0 Play Time 00:13:28 Cumulative 7.8 hours Start 2024.04.06 @ 14:17:54 End 2024.04.06 @ 14:28:09 Sessions 1 Manual Loads 0 Difficulty Rogue Special Mode None Game No. 16 Rogue 16 Adventurer 0 Explorer 0 Win Type - Total 0 Types 0/0/0/0/0/0/0/0/0 Lore% 8 Gallery% 13 Achievement% 13 Wizard Run 0 Options --------- Layout 1 ASCII 0 Keyboard 0 Movement Numpad Keybinds 0 Fullscreen 1 Font 32/SmallcapsGlow Map View 50x35 Zoom Use 0% Tactical HUD 0 Map Filters NONE Filters NONE Steam 1 RUN: 5f710831-f14e-4f65-ade4-8ee6efedb386